[Event "Live Chess"]
[Site "Chess.com"]
[Date "2024.06.02"]
[Round "-"]
[White "ClassyChameleon"]
[Black "halfberg"]
[Result "0-1"]
[WhiteElo "1553"]
[BlackElo "1899"]
[TimeControl "300"]
[EndTime "5:13:23 PDT"]
[Termination "halfberg won by resignation"]

1. e4 {[%clk 0:04:58.8]} 1... c5 {[%clk 0:04:58.3]} 2. Nf3 {[%clk 0:04:58.2]}
2... Nc6 {[%clk 0:04:57.7]} 3. d4 {[%clk 0:04:57.8]} 3... cxd4 {[%clk
0:04:57.2]} 4. Nxd4 {[%clk 0:04:57.7]} 4... Nf6 {[%clk 0:04:56.3]} 5. Nxc6
{[%clk 0:04:56.4]} 5... bxc6 {[%clk 0:04:54.7]} 6. e5 {[%clk 0:04:56.1]} 6...
Nd5 {[%clk 0:04:53.4]} 7. Nc3 {[%clk 0:04:54.6]} 7... Nxc3 {[%clk 0:04:52]} 8.
bxc3 {[%clk 0:04:54.5]} 8... d5 {[%clk 0:04:51]} 9. Bf4 {[%clk 0:04:52.5]} 9...
e6 {[%clk 0:04:49.6]} 10. Bd3 {[%clk 0:04:51.1]} 10... Be7 {[%clk 0:04:47.9]}
11. O-O {[%clk 0:04:49.8]} 11... O-O {[%clk 0:04:44.9]} 12. Qg4 {[%clk
0:04:42.9]} 12... f5 {[%clk 0:04:35.5]} 13. Qg3 {[%clk 0:04:31.7]} 13... a5
{[%clk 0:04:30.6]} 14. h4 {[%clk 0:04:27.4]} 14... Bxh4 {[%clk 0:04:27.3]} 15.
Qh3 {[%clk 0:04:26.5]} 15... Be7 {[%clk 0:04:22.1]} 16. g3 {[%clk 0:04:19.8]}
16... Ba6 {[%clk 0:04:19.3]} 17. Bxa6 {[%clk 0:04:17.5]} 17... Rxa6 {[%clk
0:04:18]} 18. Kg2 {[%clk 0:04:17]} 18... Bg5 {[%clk 0:04:06.5]} 19. Rh1 {[%clk
0:04:13.6]} 19... h6 {[%clk 0:04:05.3]} 20. Rab1 {[%clk 0:04:02.6]} 20... Bxf4
{[%clk 0:04:01.9]} 21. gxf4 {[%clk 0:04:01.9]} 21... Rb6 {[%clk 0:03:59.9]} 22.
Rxb6 {[%clk 0:03:57.3]} 22... Qxb6 {[%clk 0:03:58.9]} 23. Qg3 {[%clk 0:03:56.9]}
23... Kh7 {[%clk 0:03:52.4]} 24. Kh2 {[%clk 0:03:50.1]} 24... Qc5 {[%clk
0:03:39.9]} 25. Rg1 {[%clk 0:03:47.2]} 25... Qe7 {[%clk 0:03:37]} 26. Rg2 {[%clk
0:03:43.8]} 26... Rg8 {[%clk 0:03:28]} 27. Kg1 {[%clk 0:03:39.1]} 27... g5
{[%clk 0:03:26.1]} 28. fxg5 {[%clk 0:03:34.4]} 28... Rxg5 {[%clk 0:03:25]} 29.
Qe3 {[%clk 0:03:28.8]} 29... Rxg2+ {[%clk 0:03:22.1]} 30. Kxg2 {[%clk
0:03:27.7]} 30... Qg5+ {[%clk 0:03:21.1]} 31. Kf1 {[%clk 0:03:26.4]} 31... Qxe3
{[%clk 0:03:19.3]} 32. fxe3 {[%clk 0:03:26.3]} 32... Kg6 {[%clk 0:03:16.5]} 33.
Kf2 {[%clk 0:03:25.8]} 33... Kg5 {[%clk 0:03:15.2]} 34. Kf3 {[%clk 0:03:25.4]}
34... h5 {[%clk 0:03:11.1]} 35. a3 {[%clk 0:03:21.3]} 35... h4 {[%clk
0:03:08.3]} 36. a4 {[%clk 0:03:19.6]} 36... h3 {[%clk 0:03:03.2]} 37. Kg3 {[%clk
0:03:18.6]} 37... h2 {[%clk 0:02:58.1]} 38. Kxh2 {[%clk 0:03:17.6]} 38... f4
{[%clk 0:02:57.5]} 39. exf4+ {[%clk 0:03:12.6]} 39... Kxf4 {[%clk 0:02:56.4]}
40. Kg2 {[%clk 0:03:12.3]} 40... Kxe5 {[%clk 0:02:55.5]} 41. Kf3 {[%clk
0:03:11.9]} 41... Kf5 {[%clk 0:02:52.2]} 42. Ke3 {[%clk 0:03:11]} 42... e5
{[%clk 0:02:51.4]} 43. Kd3 {[%clk 0:03:07]} 43... Kf4 {[%clk 0:02:50.1]} 44. Ke2
{[%clk 0:03:05.3]} 44... c5 {[%clk 0:02:47.2]} 45. Kd3 {[%clk 0:03:03.7]} 45...
c4+ {[%clk 0:02:46.2]} 46. Ke2 {[%clk 0:03:02.8]} 46... Ke4 {[%clk 0:02:43]} 47.
Kf2 {[%clk 0:03:00.2]} 47... d4 {[%clk 0:02:39.9]} 48. cxd4 {[%clk 0:02:56.5]}
48... Kxd4 {[%clk 0:02:38.1]} 49. Ke2 {[%clk 0:02:55.3]} 49... Kc3 {[%clk
0:02:37.1]} 50. Kd1 {[%clk 0:02:51.3]} 50... e4 {[%clk 0:02:36]} 51. Kc1 {[%clk
0:02:50.1]} 51... e3 {[%clk 0:02:34.1]} 52. Kd1 {[%clk 0:02:49.6]} 52... e2+
{[%clk 0:02:30.9]} 53. Kxe2 {[%clk 0:02:49]} 53... Kxc2 {[%clk 0:02:30.2]} 54.
Ke3 {[%clk 0:02:48.2]} 54... Kb2 {[%clk 0:02:29.1]} 55. Kd2 {[%clk 0:02:46.8]}
55... c3+ {[%clk 0:02:28.3]} 56. Kd1 {[%clk 0:02:45.8]} 56... c2+ {[%clk
0:02:27.6]} 0-1

[Event "Live Chess"]
[Site "Chess.com"]
[Date "2024.06.02"]
[Round "-"]
[White "LL220284LL"]
[Black "Bradfield133"]
[Result "1-0"]
[WhiteElo "2500"]
[BlackElo "1836"]
[TimeControl "300"]
[EndTime "5:13:52 PDT"]
[Termination "LL220284LL won by resignation"]

1. Nf3 {[%clk 0:04:58.1]} 1... c5 {[%clk 0:04:55.8]} 2. b3 {[%clk 0:04:57.6]}
2... d6 {[%clk 0:04:53.4]} 3. Bb2 {[%clk 0:04:56.8]} 3... Nh6 {[%clk 0:04:49]}
4. e3 {[%clk 0:04:56.1]} 4... e5 {[%clk 0:04:47]} 5. d3 {[%clk 0:04:54.3]} 5...
Be7 {[%clk 0:04:43.7]} 6. Be2 {[%clk 0:04:53.6]} 6... O-O {[%clk 0:04:39.8]} 7.
O-O {[%clk 0:04:53.2]} 7... f5 {[%clk 0:04:38.1]} 8. c4 {[%clk 0:04:52.6]} 8...
Be6 {[%clk 0:04:28]} 9. Nc3 {[%clk 0:04:50.9]} 9... Nd7 {[%clk 0:04:26.1]} 10.
Qc2 {[%clk 0:04:45.9]} 10... g5 {[%clk 0:04:14.9]} 11. Nd2 {[%clk 0:04:37.3]}
11... f4 {[%clk 0:03:59.5]} 12. d4 {[%clk 0:04:29.7]} 12... Bf5 {[%clk
0:03:35.4]} 13. Bd3 {[%clk 0:04:23.5]} 13... cxd4 {[%clk 0:03:28.4]} 14. exd4
{[%clk 0:04:20.6]} 14... exd4 {[%clk 0:03:13.4]} 15. Nb5 {[%clk 0:04:19.2]}
15... Ne5 {[%clk 0:02:46.8]} 16. Bxf5 {[%clk 0:04:16.5]} 16... Nxf5 {[%clk
0:02:44.9]} 17. Nxd4 {[%clk 0:04:15.2]} 17... Nxd4 {[%clk 0:02:39.3]} 18. Bxd4
{[%clk 0:04:13]} 18... Bf6 {[%clk 0:02:38.2]} 19. Bxe5 {[%clk 0:04:04.5]} 19...
Bxe5 {[%clk 0:02:35.2]} 20. Rad1 {[%clk 0:03:59.5]} 20... Qe7 {[%clk 0:02:30]}
21. f3 {[%clk 0:03:56.8]} 21... Bd4+ {[%clk 0:02:19.9]} 22. Kh1 {[%clk
0:03:55.6]} 22... Rae8 {[%clk 0:02:00.1]} 23. Ne4 {[%clk 0:03:53.5]} 23... Be5
{[%clk 0:01:53.8]} 24. Rd5 {[%clk 0:03:50.8]} 24... Rd8 {[%clk 0:01:23.7]} 25.
Rfd1 {[%clk 0:03:47.2]} 25... Qg7 {[%clk 0:01:15.9]} 26. c5 {[%clk 0:03:42.1]}
26... Rf7 {[%clk 0:00:51.2]} 27. Nxd6 {[%clk 0:03:35.3]} 27... Bxd6 {[%clk
0:00:45]} 28. cxd6 {[%clk 0:03:32.7]} 28... Rfd7 {[%clk 0:00:43.6]} 29. h3
{[%clk 0:03:28.5]} 29... Qf7 {[%clk 0:00:37.8]} 30. Rxg5+ {[%clk 0:03:26.1]}
30... Kf8 {[%clk 0:00:37.1]} 31. Rf5 {[%clk 0:03:25]} 1-0

[Event "Live Chess"]
[Site "Chess.com"]
[Date "2024.06.02"]
[Round "-"]
[White "bobby_jamesFischer86"]
[Black "road2gm5000"]
[Result "0-1"]
[WhiteElo "1623"]
[BlackElo "1130"]
[TimeControl "300"]
[EndTime "5:14:10 PDT"]
[Termination "road2gm5000 won by checkmate"]

1. d4 {[%clk 0:04:56.4]} 1... d5 {[%clk 0:04:52.1]} 2. c4 {[%clk 0:04:54.8]}
2... e6 {[%clk 0:04:49.7]} 3. Nc3 {[%clk 0:04:53.1]} 3... Nf6 {[%clk 0:04:47.6]}
4. cxd5 {[%clk 0:04:50.2]} 4... Nxd5 {[%clk 0:04:45.6]} 5. e4 {[%clk 0:04:48]}
5... Nxc3 {[%clk 0:04:43.3]} 6. bxc3 {[%clk 0:04:47.6]} 6... Nc6 {[%clk
0:04:42.1]} 7. Bd3 {[%clk 0:04:46.1]} 7... Be7 {[%clk 0:04:37.6]} 8. Nf3 {[%clk
0:04:44.4]} 8... O-O {[%clk 0:04:36.1]} 9. Be3 {[%clk 0:04:41]} 9... Bf6 {[%clk
0:04:34.9]} 10. O-O {[%clk 0:04:39.5]} 10... e5 {[%clk 0:04:33.7]} 11. d5 {[%clk
0:04:37.7]} 11... Ne7 {[%clk 0:04:32.6]} 12. c4 {[%clk 0:04:36.3]} 12... c6
{[%clk 0:04:30.4]} 13. Rc1 {[%clk 0:04:34.1]} 13... cxd5 {[%clk 0:04:23.9]} 14.
cxd5 {[%clk 0:04:32.5]} 14... Re8 {[%clk 0:04:14.9]} 15. Bb1 {[%clk 0:04:30.2]}
15... b6 {[%clk 0:04:13.5]} 16. Qd3 {[%clk 0:04:28.1]} 16... Bb7 {[%clk
0:04:08]} 17. Nxe5 {[%clk 0:04:20.4]} 17... Bxe5 {[%clk 0:04:02.9]} 18. f4
{[%clk 0:04:19.9]} 18... Bb8 {[%clk 0:03:39.2]} 19. e5 {[%clk 0:04:18.7]} 19...
g6 {[%clk 0:03:32.6]} 20. d6 {[%clk 0:03:55]} 20... Nf5 {[%clk 0:03:31.4]} 21.
Bf2 {[%clk 0:03:51.4]} 21... Bxd6 {[%clk 0:03:12.8]} 22. exd6 {[%clk 0:03:47.6]}
22... Qxd6 {[%clk 0:03:12.7]} 23. Qxd6 {[%clk 0:03:34.3]} 23... Nxd6 {[%clk
0:03:11.1]} 24. Rc7 {[%clk 0:03:31.5]} 24... Rac8 {[%clk 0:03:04.3]} 25. Rfc1
{[%clk 0:03:17.9]} 25... Rxc7 {[%clk 0:03:03.4]} 26. Rxc7 {[%clk 0:03:16.1]}
26... Rc8 {[%clk 0:03:03]} 27. Rxc8+ {[%clk 0:03:11]} 27... Nxc8 {[%clk
0:03:00.7]} 28. Bc2 {[%clk 0:03:07.2]} 28... Ne7 {[%clk 0:02:59]} 29. Bb3 {[%clk
0:03:06.2]} 29... Bd5 {[%clk 0:02:53.5]} 30. g3 {[%clk 0:03:01.3]} 30... Bxb3
{[%clk 0:02:51]} 31. axb3 {[%clk 0:03:00.9]} 31... Kf8 {[%clk 0:02:48.3]} 32.
Kf1 {[%clk 0:02:59.8]} 32... Ke8 {[%clk 0:02:47.7]} 33. Ke2 {[%clk 0:02:59.4]}
33... Kd7 {[%clk 0:02:47.4]} 34. Kd3 {[%clk 0:02:58.9]} 34... Kc6 {[%clk
0:02:47.1]} 35. Kc4 {[%clk 0:02:58.4]} 35... Nd5 {[%clk 0:02:43.9]} 36. Bg1
{[%clk 0:02:53.7]} 36... f5 {[%clk 0:02:42.2]} 37. Kd4 {[%clk 0:02:50.3]} 37...
Kd6 {[%clk 0:02:36.1]} 38. Kc4 {[%clk 0:02:45.7]} 38... a6 {[%clk 0:02:32.8]}
39. b4 {[%clk 0:02:42.4]} 39... b5+ {[%clk 0:02:30.7]} 40. Kb3 {[%clk 0:02:38]}
40... Kc6 {[%clk 0:02:24.1]} 41. Bc5 {[%clk 0:02:32.4]} 41... Nb6 {[%clk
0:02:22.9]} 42. h3 {[%clk 0:02:22.2]} 42... Nc4 {[%clk 0:02:21.4]} 43. g4 {[%clk
0:02:19.9]} 43... fxg4 {[%clk 0:02:20.6]} 44. hxg4 {[%clk 0:02:18.6]} 44... Nd2+
{[%clk 0:02:17.2]} 45. Kc2 {[%clk 0:02:14]} 45... Ne4 {[%clk 0:02:13.3]} 46. Bf8
{[%clk 0:02:08.8]} 46... Nf2 {[%clk 0:02:05.1]} 47. f5 {[%clk 0:02:04.9]} 47...
Nxg4 {[%clk 0:02:01.3]} 48. fxg6 {[%clk 0:02:01.3]} 48... hxg6 {[%clk
0:01:59.6]} 49. Kd3 {[%clk 0:01:59.3]} 49... Kb6 {[%clk 0:01:57.6]} 50. Ke4
{[%clk 0:01:58]} 50... Nf6+ {[%clk 0:01:52.2]} 51. Kf4 {[%clk 0:01:46.1]} 51...
Nh7 {[%clk 0:01:49.2]} 52. Bg7 {[%clk 0:01:43]} 52... g5+ {[%clk 0:01:45]} 53.
Kf5 {[%clk 0:01:38.6]} 53... a5 {[%clk 0:01:43.9]} 54. bxa5+ {[%clk 0:01:36.8]}
54... Kxa5 {[%clk 0:01:43.8]} 55. Kg6 {[%clk 0:01:35.6]} 55... g4 {[%clk
0:01:40.4]} 56. Kxh7 {[%clk 0:01:33.7]} 56... g3 {[%clk 0:01:39.8]} 57. Bd4
{[%clk 0:01:30.9]} 57... g2 {[%clk 0:01:38.6]} 58. Kg6 {[%clk 0:01:29.3]} 58...
b4 {[%clk 0:01:38.3]} 59. Kf5 {[%clk 0:01:26.6]} 59... b3 {[%clk 0:01:37.9]} 60.
Kf4 {[%clk 0:01:21.3]} 60... b2 {[%clk 0:01:37.5]} 61. Bxb2 {[%clk 0:01:18.4]}
61... g1=Q {[%clk 0:01:36.3]} 62. Be5 {[%clk 0:01:17.3]} 62... Qf2+ {[%clk
0:01:34.2]} 63. Ke4 {[%clk 0:01:16.2]} 63... Kb5 {[%clk 0:01:31.1]} 64. Bd4
{[%clk 0:01:14.8]} 64... Qh4+ {[%clk 0:01:29]} 65. Kd3 {[%clk 0:01:13.5]} 65...
Qg3+ {[%clk 0:01:23.9]} 66. Be3 {[%clk 0:01:08.1]} 66... Kc6 {[%clk 0:01:22.3]}
67. Ke4 {[%clk 0:01:04.4]} 67... Kd7 {[%clk 0:01:16.6]} 68. Bf4 {[%clk
0:01:02.8]} 68... Qe1+ {[%clk 0:01:13.2]} 69. Be3 {[%clk 0:01:01.6]} 69... Ke6
{[%clk 0:01:12.6]} 70. Kd3 {[%clk 0:00:59.4]} 70... Ke5 {[%clk 0:01:07.5]} 71.
Bd4+ {[%clk 0:00:52.7]} 71... Kd5 {[%clk 0:01:05.5]} 72. Bc3 {[%clk 0:00:47.8]}
72... Qe4+ {[%clk 0:01:02.9]} 73. Kd2 {[%clk 0:00:45.5]} 73... Kc4 {[%clk
0:01:01.9]} 74. Ba1 {[%clk 0:00:38.5]} 74... Qd3+ {[%clk 0:01:00.4]} 75. Kc1
{[%clk 0:00:36.2]} 75... Qe2 {[%clk 0:00:59]} 76. Kb1 {[%clk 0:00:34]} 76... Kb3
{[%clk 0:00:57]} 77. Bc3 {[%clk 0:00:27.5]} 77... Qc2+ {[%clk 0:00:56.1]} 78.
Ka1 {[%clk 0:00:23.2]} 78... Qa2# {[%clk 0:00:55.7]} 0-1

[Event "Live Chess"]
[Site "Chess.com"]
[Date "2024.06.02"]
[Round "-"]
[White "BearFromUkraine"]
[Black "YrrriKharkiv"]
[Result "0-1"]
[WhiteElo "988"]
[BlackElo "2133"]
[TimeControl "300"]
[EndTime "5:14:10 PDT"]
[Termination "YrrriKharkiv won by resignation"]

1. e4 {[%clk 0:04:53.4]} 1... e6 {[%clk 0:04:58.8]} 2. d4 {[%clk 0:04:52.1]}
2... d5 {[%clk 0:04:58.2]} 3. exd5 {[%clk 0:04:50]} 3... exd5 {[%clk 0:04:57.1]}
4. Nf3 {[%clk 0:04:48.9]} 4... Bd6 {[%clk 0:04:56.5]} 5. Be2 {[%clk 0:04:42.2]}
5... Ne7 {[%clk 0:04:55.4]} 6. O-O {[%clk 0:04:41.1]} 6... Nd7 {[%clk
0:04:54.9]} 7. Nc3 {[%clk 0:04:39.8]} 7... c6 {[%clk 0:04:53.9]} 8. Bg5 {[%clk
0:04:36.4]} 8... f6 {[%clk 0:04:52.7]} 9. Be3 {[%clk 0:04:29.5]} 9... O-O {[%clk
0:04:51.5]} 10. Re1 {[%clk 0:04:24]} 10... Re8 {[%clk 0:04:50.6]} 11. Qd3 {[%clk
0:04:15.3]} 11... Nf8 {[%clk 0:04:48.6]} 12. h4 {[%clk 0:04:05.8]} 12... Bg4
{[%clk 0:04:46.7]} 13. Nd2 {[%clk 0:03:55.9]} 13... Bf5 {[%clk 0:04:44.5]} 0-1

[Event "Live Chess"]
[Site "Chess.com"]
[Date "2024.06.02"]
[Round "-"]
[White "KeithArkell"]
[Black "upoe610"]
[Result "1-0"]
[WhiteElo "2421"]
[BlackElo "2143"]
[TimeControl "300"]
[EndTime "5:14:13 PDT"]
[Termination "KeithArkell won by resignation"]

1. d4 {[%clk 0:04:55.7]} 1... Nf6 {[%clk 0:04:59.3]} 2. Nf3 {[%clk 0:04:53.6]}
2... c5 {[%clk 0:04:58.6]} 3. c3 {[%clk 0:04:52.5]} 3... g6 {[%clk 0:04:46.3]}
4. Bg5 {[%clk 0:04:49.7]} 4... Bg7 {[%clk 0:04:45.1]} 5. Bxf6 {[%clk 0:04:48.8]}
5... Bxf6 {[%clk 0:04:44.2]} 6. Nbd2 {[%clk 0:04:48.4]} 6... cxd4 {[%clk
0:04:42.6]} 7. cxd4 {[%clk 0:04:45.9]} 7... Nc6 {[%clk 0:04:42.1]} 8. e3 {[%clk
0:04:44.8]} 8... O-O {[%clk 0:04:40.6]} 9. Bd3 {[%clk 0:04:43]} 9... d5 {[%clk
0:04:37.9]} 10. Rc1 {[%clk 0:04:34.8]} 10... Nb4 {[%clk 0:04:34.9]} 11. Bb1
{[%clk 0:04:33.3]} 11... Bg4 {[%clk 0:04:32.8]} 12. a3 {[%clk 0:04:32.4]} 12...
Nc6 {[%clk 0:04:30.9]} 13. h3 {[%clk 0:04:31.9]} 13... Bxf3 {[%clk 0:04:28.3]}
14. Nxf3 {[%clk 0:04:31.1]} 14... e6 {[%clk 0:04:25.9]} 15. O-O {[%clk
0:04:30.3]} 15... Bg7 {[%clk 0:04:24.6]} 16. Qa4 {[%clk 0:04:28.6]} 16... Rc8
{[%clk 0:04:20.7]} 17. Bd3 {[%clk 0:04:27.1]} 17... Qa5 {[%clk 0:04:18.3]} 18.
Bb5 {[%clk 0:04:24.1]} 18... Qxa4 {[%clk 0:04:16.9]} 19. Bxa4 {[%clk 0:04:23.3]}
19... Na5 {[%clk 0:04:13.4]} 20. Nd2 {[%clk 0:04:18.1]} 20... a6 {[%clk
0:04:11.7]} 21. b4 {[%clk 0:04:17.2]} 21... Nc6 {[%clk 0:04:05.6]} 22. Bxc6
{[%clk 0:04:15.5]} 22... Rxc6 {[%clk 0:04:04.1]} 23. Rxc6 {[%clk 0:04:14.6]}
23... bxc6 {[%clk 0:04:04]} 24. Rc1 {[%clk 0:04:13.9]} 24... Rc8 {[%clk
0:04:02.6]} 25. Nb3 {[%clk 0:04:13.1]} 25... Bf8 {[%clk 0:03:57.4]} 26. Na5
{[%clk 0:04:11.8]} 26... e5 {[%clk 0:03:43.8]} 27. Rxc6 {[%clk 0:04:08]} 27...
Ra8 {[%clk 0:03:38.9]} 28. dxe5 {[%clk 0:04:06.7]} 28... Bg7 {[%clk 0:03:36.7]}
29. f4 {[%clk 0:04:05.2]} 29... g5 {[%clk 0:03:33.4]} 30. Kf2 {[%clk 0:04:03.8]}
30... gxf4 {[%clk 0:03:32.5]} 31. exf4 {[%clk 0:04:03.2]} 31... Bf8 {[%clk
0:03:31.8]} 32. Ke2 {[%clk 0:04:01.6]} 32... Kg7 {[%clk 0:03:28.5]} 33. g4
{[%clk 0:03:59.2]} 33... Rd8 {[%clk 0:03:26]} 34. Kd3 {[%clk 0:03:58]} 1-0

[Event "Live Chess"]
[Site "Chess.com"]
[Date "2024.06.02"]
[Round "-"]
[White "Grace6363"]
[Black "GEMdzq"]
[Result "0-1"]
[WhiteElo "1142"]
[BlackElo "2292"]
[TimeControl "300"]
[EndTime "5:14:16 PDT"]
[Termination "GEMdzq won by resignation"]

1. d4 {[%clk 0:04:56.3]} 1... Nf6 {[%clk 0:04:59]} 2. c4 {[%clk 0:04:54.8]} 2...
e5 {[%clk 0:04:57.7]} 3. dxe5 {[%clk 0:04:48.2]} 3... Ng4 {[%clk 0:04:56.8]} 4.
Bf4 {[%clk 0:04:46.2]} 4... Nc6 {[%clk 0:04:52.1]} 5. Nf3 {[%clk 0:04:45.4]}
5... Bb4+ {[%clk 0:04:51.6]} 6. Nbd2 {[%clk 0:04:44.7]} 6... Qe7 {[%clk
0:04:49.8]} 7. e3 {[%clk 0:04:44]} 7... Ngxe5 {[%clk 0:04:47.3]} 8. Nxe5 {[%clk
0:04:43.1]} 8... Nxe5 {[%clk 0:04:47.2]} 9. Be2 {[%clk 0:04:42.6]} 9... O-O
{[%clk 0:04:45.7]} 10. O-O {[%clk 0:04:41.5]} 10... d6 {[%clk 0:04:44.1]} 11. a3
{[%clk 0:04:40.5]} 11... Bxd2 {[%clk 0:04:42.8]} 12. Qxd2 {[%clk 0:04:38]} 12...
Bf5 {[%clk 0:04:42.1]} 13. h3 {[%clk 0:04:18.1]} 13... Qf6 {[%clk 0:04:28.1]}
14. g4 {[%clk 0:04:09.2]} 14... Qg6 {[%clk 0:04:18.4]} 15. Bxe5 {[%clk
0:04:04.3]} 15... dxe5 {[%clk 0:04:18.3]} 16. Qa5 {[%clk 0:03:41.5]} 16... Bd3
{[%clk 0:03:57.2]} 17. Bxd3 {[%clk 0:03:29.8]} 17... Qxd3 {[%clk 0:03:57.1]} 18.
Qxe5 {[%clk 0:03:26.1]} 18... c6 {[%clk 0:03:54.3]} 19. Qd4 {[%clk 0:03:17.1]}
19... Qg6 {[%clk 0:03:52]} 20. Rad1 {[%clk 0:03:11.6]} 20... Rae8 {[%clk
0:03:48.7]} 21. Qd7 {[%clk 0:03:04.5]} 21... f5 {[%clk 0:03:39.3]} 22. Qd3
{[%clk 0:02:47.7]} 22... Qh6 {[%clk 0:03:31]} 23. Rfe1 {[%clk 0:02:39.9]} 23...
Qxh3 {[%clk 0:03:27.1]} 24. gxf5 {[%clk 0:02:20.5]} 24... Rxf5 {[%clk
0:03:19.2]} 25. f4 {[%clk 0:01:24.6]} 25... Qg3+ {[%clk 0:03:11.8]} 26. Kf1
{[%clk 0:01:21.6]} 26... Qf3+ {[%clk 0:03:10]} 27. Kg1 {[%clk 0:01:13.2]} 27...
Rh5 {[%clk 0:03:08.2]} 0-1

[Event "Live Chess"]
[Site "Chess.com"]
[Date "2024.06.02"]
[Round "-"]
[White "Colm_Buckley"]
[Black "AlanBstard10"]
[Result "1-0"]
[WhiteElo "1875"]
[BlackElo "1235"]
[TimeControl "300"]
[EndTime "5:14:18 PDT"]
[Termination "Colm_Buckley won by resignation"]

1. d4 {[%clk 0:04:57.4]} 1... Nf6 {[%clk 0:04:58.2]} 2. c4 {[%clk 0:04:56.8]}
2... c5 {[%clk 0:04:55.7]} 3. e3 {[%clk 0:04:54.9]} 3... g6 {[%clk 0:04:50.1]}
4. Nc3 {[%clk 0:04:53.6]} 4... Bg7 {[%clk 0:04:49.2]} 5. Nf3 {[%clk 0:04:52.5]}
5... O-O {[%clk 0:04:47.8]} 6. Be2 {[%clk 0:04:51.8]} 6... d6 {[%clk 0:04:46.7]}
7. O-O {[%clk 0:04:51.1]} 7... Nc6 {[%clk 0:04:36.8]} 8. dxc5 {[%clk 0:04:49.4]}
8... dxc5 {[%clk 0:04:34.4]} 9. a3 {[%clk 0:04:46.2]} 9... Qxd1 {[%clk
0:04:31.5]} 10. Rxd1 {[%clk 0:04:44]} 10... Bg4 {[%clk 0:04:27.5]} 11. h3 {[%clk
0:04:40.7]} 11... Bxf3 {[%clk 0:04:23.5]} 12. Bxf3 {[%clk 0:04:39.5]} 12... Rab8
{[%clk 0:03:53.1]} 13. Bd2 {[%clk 0:04:29.9]} 13... Ne5 {[%clk 0:03:47.5]} 14.
Be2 {[%clk 0:04:22.9]} 14... Nfd7 {[%clk 0:03:42.6]} 15. f4 {[%clk 0:04:17.9]}
15... Nc6 {[%clk 0:03:39.5]} 16. Rab1 {[%clk 0:04:08.8]} 16... b6 {[%clk
0:03:34.4]} 17. Bf3 {[%clk 0:04:00.3]} 17... Rbc8 {[%clk 0:03:17.6]} 18. Be1
{[%clk 0:03:47.2]} 18... Nf6 {[%clk 0:03:11.2]} 19. Nd5 {[%clk 0:03:34]} 19...
Nxd5 {[%clk 0:03:09.1]} 20. Rxd5 {[%clk 0:03:19]} 20... Rfd8 {[%clk 0:02:58.5]}
21. Rxd8+ {[%clk 0:03:16]} 21... Nxd8 {[%clk 0:02:56.7]} 22. Bh4 {[%clk
0:03:08.8]} 22... f6 {[%clk 0:02:49.8]} 23. Bf2 {[%clk 0:02:57.5]} 23... Nf7
{[%clk 0:02:44.1]} 24. Bd5 {[%clk 0:02:44.6]} 24... Kf8 {[%clk 0:02:27.5]} 25.
b4 {[%clk 0:02:42.6]} 25... cxb4 {[%clk 0:02:24.8]} 26. axb4 {[%clk 0:02:40.9]}
26... Nd6 {[%clk 0:02:21.4]} 27. Rc1 {[%clk 0:02:29.4]} 27... Ke8 {[%clk
0:02:11.8]} 28. e4 {[%clk 0:02:26.1]} 28... Bh6 {[%clk 0:02:05.3]} 29. g3 {[%clk
0:02:21.2]} 29... g5 {[%clk 0:02:03.2]} 30. Be3 {[%clk 0:02:17.9]} 30... gxf4
{[%clk 0:02:01.7]} 31. gxf4 {[%clk 0:02:16.6]} 31... Bg7 {[%clk 0:01:48.8]} 32.
Kf2 {[%clk 0:02:14]} 32... f5 {[%clk 0:01:37.8]} 33. e5 {[%clk 0:02:01.5]} 33...
Nf7 {[%clk 0:01:29.9]} 34. Be6 {[%clk 0:01:55.7]} 34... Rc6 {[%clk 0:01:23.5]}
35. Bxf5 {[%clk 0:01:50.7]} 35... h6 {[%clk 0:01:17.7]} 36. c5 {[%clk
0:01:47.4]} 36... bxc5 {[%clk 0:01:16.3]} 37. Rxc5 {[%clk 0:01:44.1]} 37... Rxc5
{[%clk 0:01:14.8]} 38. Bxc5 {[%clk 0:01:42.5]} 38... a6 {[%clk 0:01:10.4]} 39.
Bd3 {[%clk 0:01:40.1]} 39... Nd8 {[%clk 0:00:59.1]} 40. Bxa6 {[%clk 0:01:37.8]}
40... Nc6 {[%clk 0:00:57.7]} 41. Bb5 {[%clk 0:01:35.1]} 41... Kd7 {[%clk
0:00:55.2]} 42. Bxc6+ {[%clk 0:01:30.4]} 42... Kxc6 {[%clk 0:00:53.3]} 43. Bxe7
{[%clk 0:01:29.9]} 43... Kb5 {[%clk 0:00:50.8]} 44. Ke3 {[%clk 0:01:26.9]} 44...
Kc4 {[%clk 0:00:47.9]} 45. Ke4 {[%clk 0:01:24.3]} 45... h5 {[%clk 0:00:45.4]}
46. f5 {[%clk 0:01:23.2]} 46... Bh6 {[%clk 0:00:44]} 47. f6 {[%clk 0:01:21.5]}
47... Kb5 {[%clk 0:00:39.8]} 48. f7 {[%clk 0:01:19.4]} 48... Kc6 {[%clk
0:00:38.1]} 49. f8=Q {[%clk 0:01:18.1]} 49... Bxf8 {[%clk 0:00:37.2]} 50. Bxf8
{[%clk 0:01:17.3]} 50... Kd7 {[%clk 0:00:34.2]} 51. Kf5 {[%clk 0:01:15.1]} 1-0

[Event "Live Chess"]
[Site "Chess.com"]
[Date "2024.06.02"]
[Round "-"]
[White "Ninifu"]
[Black "Dhaydon19"]
[Result "0-1"]
[WhiteElo "2010"]
[BlackElo "2639"]
[TimeControl "300"]
[EndTime "5:14:19 PDT"]
[Termination "Dhaydon19 won on time"]

1. d4 {[%clk 0:04:52.4]} 1... e6 {[%clk 0:04:59.1]} 2. c4 {[%clk 0:04:51.1]}
2... Nf6 {[%clk 0:04:57.6]} 3. Nf3 {[%clk 0:04:48.5]} 3... d5 {[%clk 0:04:57.2]}
4. g3 {[%clk 0:04:47.7]} 4... Be7 {[%clk 0:04:56]} 5. Bg2 {[%clk 0:04:47]} 5...
O-O {[%clk 0:04:55.1]} 6. O-O {[%clk 0:04:46.4]} 6... b6 {[%clk 0:04:54.4]} 7.
Nc3 {[%clk 0:04:39.7]} 7... Bb7 {[%clk 0:04:52.3]} 8. Ne5 {[%clk 0:04:37.8]}
8... c5 {[%clk 0:04:41.5]} 9. cxd5 {[%clk 0:04:35]} 9... Nxd5 {[%clk 0:04:38.9]}
10. e4 {[%clk 0:04:26]} 10... Nxc3 {[%clk 0:04:37.4]} 11. bxc3 {[%clk
0:04:24.5]} 11... Nd7 {[%clk 0:04:36.4]} 12. Nc4 {[%clk 0:04:00.3]} 12... cxd4
{[%clk 0:04:33.8]} 13. cxd4 {[%clk 0:03:57.6]} 13... Rc8 {[%clk 0:04:32.9]} 14.
Ne3 {[%clk 0:03:51.5]} 14... Nf6 {[%clk 0:04:29.9]} 15. d5 {[%clk 0:03:40.9]}
15... exd5 {[%clk 0:04:27]} 16. e5 {[%clk 0:03:31.3]} 16... Ne4 {[%clk 0:04:24]}
17. Nf5 {[%clk 0:03:16]} 17... g6 {[%clk 0:04:18.7]} 18. Qg4 {[%clk 0:03:03.4]}
18... Bc5 {[%clk 0:04:11.6]} 19. Be3 {[%clk 0:02:38.7]} 19... Kh8 {[%clk
0:04:05.2]} 20. Bh6 {[%clk 0:02:12.7]} 20... Rg8 {[%clk 0:03:58]} 21. Bxe4
{[%clk 0:01:42]} 21... dxe4 {[%clk 0:03:54.9]} 22. Rad1 {[%clk 0:00:45.4]} 22...
gxf5 {[%clk 0:03:42.9]} 23. Qxf5 {[%clk 0:00:33.9]} 23... Qe7 {[%clk 0:03:38.2]}
24. Rd7 {[%clk 0:00:32.2]} 24... Qe6 {[%clk 0:03:36.5]} 25. Qxe6 {[%clk
0:00:24.3]} 25... fxe6 {[%clk 0:03:35.1]} 26. Rxb7 {[%clk 0:00:22]} 26... Rg6
{[%clk 0:03:34.1]} 27. Bf4 {[%clk 0:00:14]} 27... Rg7 {[%clk 0:03:33]} 28. Rxg7
{[%clk 0:00:09.7]} 28... Kxg7 {[%clk 0:03:32.6]} 29. Rd1 {[%clk 0:00:09.1]}
29... Kg6 {[%clk 0:03:31]} 30. Rd7 {[%clk 0:00:06.8]} 30... a5 {[%clk
0:03:29.6]} 31. h4 {[%clk 0:00:06.2]} 31... h5 {[%clk 0:03:28.5]} 32. Kg2 {[%clk
0:00:04]} 32... a4 {[%clk 0:03:25.9]} 33. f3 {[%clk 0:00:01.2]} 33... Bf2 {[%clk
0:03:25.6]} 0-1